[Event "*** Titled Tuesday 3|2 Blitz"]
[Site "Chess.com"]
[Date "2016.01.05"]
[Round "7"]
[White "wilju"]
[Black "northridgehawk"]
[Result "1-0"]
[WhiteElo "1838"]
[BlackElo "1774"]
[TimeControl "180+2"]
[EndTime "12:27:17 PST"]
[Termination "wilju won by resignation"]

1. e4 {[%clk 0:03:01.9]} 1... e5 {[%clk 0:02:55.1]} 2. Nf3 {[%clk 0:03:00.7]}
2... Nc6 {[%clk 0:02:54.3]} 3. d4 {[%clk 0:03:00.7]} 3... exd4 {[%clk 0:02:53]}
4. Nxd4 {[%clk 0:03:00.7]} 4... Qh4 {[%clk 0:02:52.8]} 5. Nc3 {[%clk 0:02:57.3]}
5... Bc5 {[%clk 0:02:49.2]} 6. Be3 {[%clk 0:02:54.4]} 6... Nf6 {[%clk
0:02:49.4]} 7. g3 {[%clk 0:02:51.1]} 7... Qg4 {[%clk 0:02:42.9]} 8. Bg2 {[%clk
0:02:48.3]} 8... Ne5 {[%clk 0:02:40.7]} 9. O-O {[%clk 0:02:40.6]} 9... d6 {[%clk
0:02:41]} 10. Ndb5 {[%clk 0:02:31]} 10... Qd7 {[%clk 0:02:31.2]} 11. Bxc5 {[%clk
0:02:24.6]} 11... dxc5 {[%clk 0:02:32]} 12. f4 {[%clk 0:02:21.9]} 12... Nc4
{[%clk 0:02:11.6]} 13. e5 {[%clk 0:01:57.7]} 13... Ng4 {[%clk 0:02:09.4]} 14.
Qxd7+ {[%clk 0:01:44.6]} 14... Bxd7 {[%clk 0:02:02.1]} 15. Nxc7+ {[%clk
0:01:43.5]} 15... Kd8 {[%clk 0:01:59.4]} 16. Nxa8 {[%clk 0:01:42.2]} 16... Kc8
{[%clk 0:01:57.9]} 17. Nd5 {[%clk 0:01:40.2]} 17... Kb8 {[%clk 0:01:56.2]} 18.
Nac7 {[%clk 0:01:40]} 18... Bc6 {[%clk 0:01:54.2]} 19. Rfe1 {[%clk 0:00:57.9]}
19... Nxb2 {[%clk 0:01:50.6]} 20. h3 {[%clk 0:00:53.1]} 20... Nh6 {[%clk
0:01:49.7]} 21. e6 {[%clk 0:00:46.6]} 21... fxe6 {[%clk 0:01:45.7]} 22. Nxe6
{[%clk 0:00:46]} 22... Nf5 {[%clk 0:01:47]} 23. g4 {[%clk 0:00:44.5]} 23... Nh4
{[%clk 0:01:47.9]} 24. Bh1 {[%clk 0:00:43]} 24... Nc4 {[%clk 0:01:42.3]} 25. f5
{[%clk 0:00:41.8]} 25... h5 {[%clk 0:01:41.9]} 26. Nxg7 {[%clk 0:00:33.8]} 26...
hxg4 {[%clk 0:01:42.5]} 27. hxg4 {[%clk 0:00:33.7]} 27... Nd2 {[%clk 0:01:41.9]}
28. f6 {[%clk 0:00:31.1]} 28... Ndf3+ {[%clk 0:01:42.1]} 29. Bxf3 {[%clk
0:00:30.5]} 29... Nxf3+ {[%clk 0:01:44]} 30. Kf2 {[%clk 0:00:30.9]} 30... Nxe1
{[%clk 0:01:45.2]} 31. Ne7 {[%clk 0:00:28]} 31... Nxc2 {[%clk 0:01:41.1]} 32.
Nxc6+ {[%clk 0:00:27.5]} 32... bxc6 {[%clk 0:01:42.1]} 33. Rb1+ {[%clk
0:00:27.3]} 33... Kc7 {[%clk 0:01:42.8]} 34. g5 {[%clk 0:00:27.9]} 34... Kd6
{[%clk 0:01:42.8]} 35. Kg3 {[%clk 0:00:25.7]} 35... Nd4 {[%clk 0:01:43.3]} 36.
Kf4 {[%clk 0:00:23.2]} 36... Rh4+ {[%clk 0:01:40.3]} 37. Kg3 {[%clk 0:00:21.5]}
37... Rh8 {[%clk 0:01:40.4]} 38. Re1 {[%clk 0:00:19.1]} 38... c4 {[%clk
0:01:34.2]} 39. g6 {[%clk 0:00:14.9]} 39... Rh6 {[%clk 0:01:31.7]} 40. f7 {[%clk
0:00:12]} 40... Rxg6+ {[%clk 0:01:33]} 41. Kh4 {[%clk 0:00:11.5]} 41... Rf6
{[%clk 0:01:33.3]} 42. Ne8+ {[%clk 0:00:11.6]} 42... Kc5 {[%clk 0:01:33.1]} 43.
Nxf6 {[%clk 0:00:13.5]} 43... Nf3+ {[%clk 0:01:31.9]} 44. Kg4 {[%clk 0:00:12.2]}
44... Nxe1 {[%clk 0:01:32.8]} 45. f8=Q+ {[%clk 0:00:12.4]} 45... Kb5 {[%clk
0:01:33.9]} 46. Qb8+ {[%clk 0:00:12.6]} 46... Kc5 {[%clk 0:01:33.2]} 47. Qxa7+
{[%clk 0:00:12.5]} 47... Kd6 {[%clk 0:01:33.8]} 48. Ne4+ {[%clk 0:00:12.5]}
48... Kd5 {[%clk 0:01:34.9]} 49. Kf4 {[%clk 0:00:13.1]} 49... Nd3+ {[%clk
0:01:35.6]} 50. Ke3 {[%clk 0:00:13.3]} 50... c5 {[%clk 0:01:34.1]} 51. Qd7+
{[%clk 0:00:13]} 51... Ke5 {[%clk 0:01:35.3]} 52. Qd6+ {[%clk 0:00:13.4]} 52...
Kf5 {[%clk 0:01:36.1]} 53. Qf6+ {[%clk 0:00:14.9]} 1-0

[Event "*** Titled Tuesday 3|2 Blitz"]
[Site "Chess.com"]
[Date "2016.01.05"]
[Round "7"]
[White "AndroQueen"]
[Black "maciek_92"]
[Result "0-1"]
[WhiteElo "2452"]
[BlackElo "2402"]
[TimeControl "180+2"]
[EndTime "12:27:22 PST"]
[Termination "maciek_92 won by resignation"]

1. e4 {[%clk 0:03:01.9]} 1... c5 {[%clk 0:02:59.1]} 2. Nf3 {[%clk 0:03:02.7]}
2... d6 {[%clk 0:03:00.1]} 3. d4 {[%clk 0:03:03.9]} 3... cxd4 {[%clk 0:03:01.7]}
4. Nxd4 {[%clk 0:03:05.5]} 4... Nf6 {[%clk 0:03:02.8]} 5. Nc3 {[%clk 0:03:06.8]}
5... a6 {[%clk 0:03:03.6]} 6. Bg5 {[%clk 0:03:07.6]} 6... Nbd7 {[%clk
0:03:02.8]} 7. Bc4 {[%clk 0:03:07.5]} 7... e6 {[%clk 0:02:57.8]} 8. Qd2 {[%clk
0:02:51.7]} 8... Qc7 {[%clk 0:02:53.4]} 9. Bb3 {[%clk 0:02:41.8]} 9... Nc5
{[%clk 0:02:53.9]} 10. Bxf6 {[%clk 0:02:41.5]} 10... gxf6 {[%clk 0:02:54.6]} 11.
O-O {[%clk 0:02:42]} 11... h5 {[%clk 0:02:51.8]} 12. f4 {[%clk 0:02:37]} 12...
b5 {[%clk 0:02:09.4]} 13. a3 {[%clk 0:02:19.6]} 13... Bh6 {[%clk 0:02:01.9]} 14.
Qf2 {[%clk 0:02:03.3]} 14... Bb7 {[%clk 0:01:34.3]} 15. Rfe1 {[%clk 0:01:32.9]}
15... Rg8 {[%clk 0:01:27.9]} 16. f5 {[%clk 0:01:26.7]} 16... e5 {[%clk
0:01:25.1]} 17. Nf3 {[%clk 0:01:26.9]} 17... Rg4 {[%clk 0:01:15.4]} 18. Bd5
{[%clk 0:01:11.3]} 18... O-O-O {[%clk 0:01:11.2]} 19. b4 {[%clk 0:01:02.3]}
19... Nxe4 {[%clk 0:00:55.7]} 20. Nxe4 {[%clk 0:00:38.5]} 20... Bxd5 {[%clk
0:00:55.2]} 21. Nxf6 {[%clk 0:00:39.8]} 21... Bxf3 {[%clk 0:00:52.1]} 22. Qxf3
{[%clk 0:00:40.4]} 22... Qa7+ {[%clk 0:00:51.4]} 23. Kh1 {[%clk 0:00:40.4]}
23... Rc4 {[%clk 0:00:52.5]} 24. a4 {[%clk 0:00:36.4]} 24... bxa4 {[%clk
0:00:49.2]} 25. Rxa4 {[%clk 0:00:36.5]} 25... Rxc2 {[%clk 0:00:46.2]} 26. b5
{[%clk 0:00:30.8]} 26... d5 {[%clk 0:00:30.8]} 27. Rxa6 {[%clk 0:00:28.9]} 27...
Qf2 {[%clk 0:00:26.1]} 28. Qxf2 {[%clk 0:00:17.4]} 28... Rxf2 {[%clk 0:00:26.9]}
29. Nxh5 {[%clk 0:00:14.6]} 29... Bd2 {[%clk 0:00:20.8]} 30. Rea1 {[%clk
0:00:12.3]} 30... Be3 {[%clk 0:00:19.5]} 31. b6 {[%clk 0:00:09.1]} 31... Kb7
{[%clk 0:00:20.3]} 32. Ra7+ {[%clk 0:00:09.2]} 32... Kxb6 {[%clk 0:00:19.3]} 33.
Rxf7 {[%clk 0:00:07.5]} 33... d4 {[%clk 0:00:19.6]} 34. Rb1+ {[%clk 0:00:08.9]}
34... Kc6 {[%clk 0:00:18.9]} 35. Ng3 {[%clk 0:00:05.8]} 35... d3 {[%clk
0:00:18.1]} 36. Ne4 {[%clk 0:00:07]} 36... Rc2 {[%clk 0:00:08.8]} 37. Rf6+
{[%clk 0:00:08]} 37... Kd5 {[%clk 0:00:09.1]} 38. Ng3 {[%clk 0:00:03.1]} 38...
d2 {[%clk 0:00:10.4]} 39. Rf1 {[%clk 0:00:03.6]} 39... Rc1 {[%clk 0:00:10.9]}
40. h4 {[%clk 0:00:02]} 40... Rxf1+ {[%clk 0:00:11.7]} 41. Nxf1 {[%clk
0:00:03.9]} 41... d1=Q {[%clk 0:00:12.8]} 0-1

[Event "*** Titled Tuesday 3|2 Blitz"]
[Site "Chess.com"]
[Date "2016.01.05"]
[Round "7"]
[White "swayamsm"]
[Black "Vorenus_Lucius"]
[Result "1-0"]
[WhiteElo "2562"]
[BlackElo "2452"]
[TimeControl "180+2"]
[EndTime "12:27:50 PST"]
[Termination "swayamsm won on time"]

1. d4 {[%clk 0:03:01.9]} 1... Nf6 {[%clk 0:03:00]} 2. c4 {[%clk 0:03:01.7]} 2...
e6 {[%clk 0:03:00.9]} 3. Nc3 {[%clk 0:03:02.9]} 3... Bb4 {[%clk 0:03:00.4]} 4.
e3 {[%clk 0:03:03.8]} 4... O-O {[%clk 0:03:00.8]} 5. Ne2 {[%clk 0:03:05]} 5...
d5 {[%clk 0:02:56.6]} 6. a3 {[%clk 0:03:06.6]} 6... Be7 {[%clk 0:02:54.7]} 7.
cxd5 {[%clk 0:03:04.6]} 7... exd5 {[%clk 0:02:55.5]} 8. h3 {[%clk 0:03:02]} 8...
c5 {[%clk 0:02:45.4]} 9. dxc5 {[%clk 0:03:00.7]} 9... Bxc5 {[%clk 0:02:46.4]}
10. g4 {[%clk 0:03:01.5]} 10... Nc6 {[%clk 0:02:42.8]} 11. Bg2 {[%clk
0:03:02.5]} 11... Be6 {[%clk 0:02:35.7]} 12. O-O {[%clk 0:03:01.2]} 12... Qe7
{[%clk 0:02:19.9]} 13. b4 {[%clk 0:03:00.1]} 13... Bb6 {[%clk 0:02:20.7]} 14.
Bb2 {[%clk 0:03:01.3]} 14... Rad8 {[%clk 0:02:19.4]} 15. Nb5 {[%clk 0:03:00.6]}
15... h5 {[%clk 0:02:11.1]} 16. g5 {[%clk 0:02:39.4]} 16... Ne4 {[%clk
0:02:11.6]} 17. Nf4 {[%clk 0:02:40.3]} 17... Qxg5 {[%clk 0:02:04.2]} 18. Qxh5
{[%clk 0:02:39.6]} 18... Qxh5 {[%clk 0:01:59.5]} 19. Nxh5 {[%clk 0:02:41.5]}
19... f6 {[%clk 0:01:59.7]} 20. Nf4 {[%clk 0:02:38.7]} 20... Bf7 {[%clk
0:02:00.7]} 21. Rfd1 {[%clk 0:02:35]} 21... a6 {[%clk 0:01:58]} 22. Nd4 {[%clk
0:02:33.8]} 22... Ne5 {[%clk 0:01:57.5]} 23. Nf5 {[%clk 0:02:30.9]} 23... Rfe8
{[%clk 0:01:54.1]} 24. Rac1 {[%clk 0:02:26.2]} 24... Kf8 {[%clk 0:01:49.5]} 25.
Bd4 {[%clk 0:02:23.9]} 25... Bxd4 {[%clk 0:01:47.3]} 26. Nxd4 {[%clk 0:02:20.4]}
26... Nc4 {[%clk 0:01:46.3]} 27. Rd3 {[%clk 0:01:55.6]} 27... g5 {[%clk
0:01:36.8]} 28. Nfe6+ {[%clk 0:01:49.9]} 28... Bxe6 {[%clk 0:01:34.4]} 29. Nxe6+
{[%clk 0:01:51.8]} 29... Rxe6 {[%clk 0:01:34.8]} 30. Rxc4 {[%clk 0:01:51.3]}
30... dxc4 {[%clk 0:01:13.9]} 31. Rxd8+ {[%clk 0:01:53.2]} 31... Ke7 {[%clk
0:01:12.2]} 32. Rd4 {[%clk 0:01:54.5]} 32... Nd6 {[%clk 0:01:08.6]} 33. Bd5
{[%clk 0:01:55.8]} 33... Re5 {[%clk 0:01:01.1]} 34. Bxc4 {[%clk 0:01:55.9]}
34... Nxc4 {[%clk 0:00:59.8]} 35. Rxc4 {[%clk 0:01:57.8]} 35... Kd7 {[%clk
0:00:56.5]} 36. Kg2 {[%clk 0:01:56.8]} 36... a5 {[%clk 0:00:56.5]} 37. Kg3
{[%clk 0:01:54.2]} 37... axb4 {[%clk 0:00:57.5]} 38. axb4 {[%clk 0:01:44.9]}
38... Ke6 {[%clk 0:00:50.4]} 39. Kg4 {[%clk 0:01:42.9]} 39... b5 {[%clk
0:00:33.1]} 40. Rd4 {[%clk 0:01:39.2]} 40... Kf7 {[%clk 0:00:33.8]} 41. e4
{[%clk 0:01:36.2]} 41... Kg6 {[%clk 0:00:15.9]} 42. f3 {[%clk 0:01:36.1]} 42...
Re7 {[%clk 0:00:07.3]} 43. Rd5 {[%clk 0:01:34.8]} 43... Rc7 {[%clk 0:00:04.7]}
44. Rxb5 {[%clk 0:01:34.3]} 44... Rc1 {[%clk 0:00:05.7]} 45. Kg3 {[%clk
0:01:35.8]} 45... Rg1+ {[%clk 0:00:06.9]} 46. Kf2 {[%clk 0:01:37]} 46... Rh1
{[%clk 0:00:07.9]} 47. Kg2 {[%clk 0:01:37.8]} 47... Rb1 {[%clk 0:00:08.8]} 48.
Rb6 {[%clk 0:01:39.2]} 48... Rb2+ {[%clk 0:00:07.9]} 49. Kg3 {[%clk 0:01:40.8]}
49... Rb3 {[%clk 0:00:08.8]} 50. e5 {[%clk 0:01:41.3]} 50... Kf5 {[%clk
0:00:07.1]} 51. exf6 {[%clk 0:01:42.2]} 51... Kg6 {[%clk 0:00:08.4]} 52. Kf2
{[%clk 0:01:27]} 52... Kf7 {[%clk 0:00:09]} 53. Kg2 {[%clk 0:01:25.6]} 53... Kg6
{[%clk 0:00:09.8]} 54. Kg3 {[%clk 0:01:27.1]} 54... Rb1 {[%clk 0:00:05.2]} 55.
f4 {[%clk 0:01:18.8]} 55... Rb3+ {[%clk 0:00:04.9]} 56. Kg4 {[%clk 0:01:18.8]}
56... gxf4 {[%clk 0:00:06.1]} 57. Kxf4 {[%clk 0:01:19.2]} 57... Rxh3 {[%clk
0:00:07]} 58. Ke5 {[%clk 0:01:20.2]} 58... Re3+ {[%clk 0:00:02.4]} 59. Kd5
{[%clk 0:01:19.1]} 1-0

[Event "*** Titled Tuesday 3|2 Blitz"]
[Site "Chess.com"]
[Date "2016.01.05"]
[Round "7"]
[White "DaPazz"]
[Black "levallem"]
[Result "0-1"]
[WhiteElo "1864"]
[BlackElo "2144"]
[TimeControl "180+2"]
[EndTime "12:28:47 PST"]
[Termination "levallem won on time"]

1. d4 {[%clk 0:03:01.9]} 1... d5 {[%clk 0:03:00.7]} 2. Nf3 {[%clk 0:03:02.1]}
2... Nf6 {[%clk 0:03:00.4]} 3. c4 {[%clk 0:03:01.2]} 3... dxc4 {[%clk
0:03:02.3]} 4. Qa4+ {[%clk 0:02:59.4]} 4... Nbd7 {[%clk 0:02:57.7]} 5. Qxc4
{[%clk 0:03:00.7]} 5... e6 {[%clk 0:02:58.9]} 6. g3 {[%clk 0:03:00.6]} 6... c5
{[%clk 0:02:48.7]} 7. Bg2 {[%clk 0:02:59.7]} 7... Nb6 {[%clk 0:02:43.4]} 8. Qd3
{[%clk 0:02:53.6]} 8... Be7 {[%clk 0:02:28.4]} 9. O-O {[%clk 0:02:52.5]} 9...
O-O {[%clk 0:02:26.7]} 10. b3 {[%clk 0:02:49.9]} 10... Nfd5 {[%clk 0:02:18.5]}
11. Bb2 {[%clk 0:02:46.3]} 11... Bf6 {[%clk 0:02:16]} 12. a3 {[%clk 0:02:39.2]}
12... Bd7 {[%clk 0:02:06.4]} 13. e4 {[%clk 0:02:38.9]} 13... Nc7 {[%clk
0:01:53.8]} 14. e5 {[%clk 0:02:39.4]} 14... Be7 {[%clk 0:01:54.7]} 15. dxc5
{[%clk 0:02:34.9]} 15... Bxc5 {[%clk 0:01:56.6]} 16. b4 {[%clk 0:02:32.9]} 16...
Be7 {[%clk 0:01:55.3]} 17. Rd1 {[%clk 0:02:19.7]} 17... Ba4 {[%clk 0:01:40.7]}
18. Qxd8 {[%clk 0:02:18.3]} 18... Raxd8 {[%clk 0:01:42.6]} 19. Rxd8 {[%clk
0:02:18.3]} 19... Rxd8 {[%clk 0:01:44.5]} 20. Nc3 {[%clk 0:02:19]} 20... Bc6
{[%clk 0:01:42]} 21. Rd1 {[%clk 0:02:17.1]} 21... Rxd1+ {[%clk 0:01:41.4]} 22.
Nxd1 {[%clk 0:02:17.8]} 22... Nc4 {[%clk 0:01:41.9]} 23. Bc1 {[%clk 0:02:18.1]}
23... b6 {[%clk 0:01:21.6]} 24. Ne3 {[%clk 0:02:17.4]} 24... Nxe3 {[%clk
0:01:14]} 25. Bxe3 {[%clk 0:02:17.4]} 25... Nb5 {[%clk 0:01:15.2]} 26. a4 {[%clk
0:01:57]} 26... Nc3 {[%clk 0:01:08.2]} 27. a5 {[%clk 0:01:50.5]} 27... Bxb4
{[%clk 0:00:45.3]} 28. axb6 {[%clk 0:01:50.2]} 28... axb6 {[%clk 0:00:43.9]} 29.
Bxb6 {[%clk 0:01:49.9]} 29... Kf8 {[%clk 0:00:31.2]} 30. Nd4 {[%clk 0:01:48.7]}
30... Bxg2 {[%clk 0:00:32.4]} 31. Kxg2 {[%clk 0:01:47.7]} 31... Nd5 {[%clk
0:00:32.9]} 32. Ba7 {[%clk 0:01:40.7]} 32... g5 {[%clk 0:00:28.9]} 33. h3 {[%clk
0:01:33.4]} 33... Kg7 {[%clk 0:00:29.9]} 34. Kf3 {[%clk 0:01:31]} 34... Kg6
{[%clk 0:00:29.7]} 35. Nc6 {[%clk 0:01:18.6]} 35... Bc3 {[%clk 0:00:28.7]} 36.
Bd4 {[%clk 0:01:13.9]} 36... Bd2 {[%clk 0:00:27.9]} 37. g4 {[%clk 0:01:09.8]}
37... h5 {[%clk 0:00:27.8]} 38. gxh5+ {[%clk 0:01:03.8]} 38... Kxh5 {[%clk
0:00:29.7]} 39. Nd8 {[%clk 0:01:02.2]} 39... Kg6 {[%clk 0:00:30.1]} 40. Nb7
{[%clk 0:01:01.1]} 40... Nf4 {[%clk 0:00:29.6]} 41. Kg4 {[%clk 0:00:55]} 41...
Nd3 {[%clk 0:00:29.1]} 42. Nd6 {[%clk 0:00:46.8]} 42... Bf4 {[%clk 0:00:29.8]}
43. h4 {[%clk 0:00:39.2]} 43... gxh4 {[%clk 0:00:25.9]} 44. Kxh4 {[%clk
0:00:39]} 44... Bxe5 {[%clk 0:00:22]} 45. Bxe5 {[%clk 0:00:33.9]} 45... Nxe5
{[%clk 0:00:23.9]} 46. f4 {[%clk 0:00:31.6]} 46... Nd3 {[%clk 0:00:21.5]} 47.
Kg4 {[%clk 0:00:31.8]} 47... f5+ {[%clk 0:00:21.5]} 48. Kf3 {[%clk 0:00:30.3]}
48... Kf6 {[%clk 0:00:22.7]} 49. Ne8+ {[%clk 0:00:30.7]} 49... Ke7 {[%clk
0:00:22.5]} 50. Ng7 {[%clk 0:00:31.4]} 50... Nc5 {[%clk 0:00:20.4]} 51. Ke3
{[%clk 0:00:31.2]} 51... Ne4 {[%clk 0:00:20.8]} 52. Kd4 {[%clk 0:00:30.9]} 52...
Kf7 {[%clk 0:00:21.9]} 53. Nh5 {[%clk 0:00:30.6]} 53... Kg6 {[%clk 0:00:22.6]}
54. Ke5 {[%clk 0:00:26.1]} 54... Kxh5 {[%clk 0:00:23.6]} 55. Kxe6 {[%clk
0:00:27.8]} 55... Kg4 {[%clk 0:00:25.5]} 0-1

[Event "*** Titled Tuesday 3|2 Blitz"]
[Site "Chess.com"]
[Date "2016.01.05"]
[Round "7"]
[White "THORK"]
[Black "Quiet_Desperation"]
[Result "1-0"]
[WhiteElo "2155"]
[BlackElo "2101"]
[TimeControl "180+2"]
[EndTime "12:28:53 PST"]
[Termination "THORK won by resignation"]

1. e3 {[%clk 0:03:01.9]} 1... e5 {[%clk 0:02:55.8]} 2. c4 {[%clk 0:03:01.8]}
2... Nc6 {[%clk 0:02:56.1]} 3. Nc3 {[%clk 0:03:03.1]} 3... Nf6 {[%clk
0:02:37.6]} 4. Nf3 {[%clk 0:03:04.1]} 4... Be7 {[%clk 0:02:33.8]} 5. a3 {[%clk
0:03:02.5]} 5... a5 {[%clk 0:02:33]} 6. Qc2 {[%clk 0:02:57.4]} 6... O-O {[%clk
0:02:33]} 7. Nd5 {[%clk 0:02:57.2]} 7... d6 {[%clk 0:02:23.7]} 8. Nxe7+ {[%clk
0:02:56.6]} 8... Qxe7 {[%clk 0:02:24.6]} 9. d3 {[%clk 0:02:57.6]} 9... Bg4
{[%clk 0:02:24.2]} 10. Be2 {[%clk 0:02:58.5]} 10... Nd7 {[%clk 0:02:20.6]} 11.
b3 {[%clk 0:02:53.9]} 11... f5 {[%clk 0:02:20.7]} 12. h3 {[%clk 0:02:52.9]}
12... Bh5 {[%clk 0:02:21.4]} 13. Nxe5 {[%clk 0:02:43.7]} 13... Qxe5 {[%clk
0:02:05.8]} 14. Bb2 {[%clk 0:02:44.6]} 14... Qe7 {[%clk 0:02:06.7]} 15. Bxh5
{[%clk 0:02:45.1]} 15... f4 {[%clk 0:02:08.4]} 16. e4 {[%clk 0:02:39.6]} 16...
Qg5 {[%clk 0:02:06.3]} 17. Bf3 {[%clk 0:02:40.3]} 17... Nde5 {[%clk 0:01:34.9]}
18. d4 {[%clk 0:02:40.7]} 18... Nxf3+ {[%clk 0:01:34.2]} 19. gxf3 {[%clk
0:02:42.1]} 19... Qh5 {[%clk 0:01:35.1]} 20. Qd3 {[%clk 0:02:38.1]} 20... Rae8
{[%clk 0:01:32.6]} 21. O-O-O {[%clk 0:02:38.8]} 21... Qh4 {[%clk 0:01:30.9]} 22.
Qd2 {[%clk 0:02:33.2]} 22... a4 {[%clk 0:01:22]} 23. b4 {[%clk 0:02:33.4]} 23...
Ne7 {[%clk 0:01:22.6]} 24. Rdg1 {[%clk 0:02:32]} 24... Rf7 {[%clk 0:01:19.3]}
25. Rg4 {[%clk 0:02:32.8]} 25... Qh6 {[%clk 0:01:19.1]} 26. h4 {[%clk
0:02:33.4]} 26... c6 {[%clk 0:01:19.9]} 27. h5 {[%clk 0:02:32]} 27... d5 {[%clk
0:01:19]} 28. cxd5 {[%clk 0:02:22.2]} 28... cxd5 {[%clk 0:01:20.1]} 29. Kb1
{[%clk 0:02:22.9]} 29... Qe6 {[%clk 0:01:10.3]} 30. Rhg1 {[%clk 0:02:11.1]}
30... dxe4 {[%clk 0:01:10.3]} 31. d5 {[%clk 0:02:12.5]} 31... Nxd5 {[%clk
0:01:06.9]} 32. Rxg7+ {[%clk 0:02:12.8]} 32... Rxg7 {[%clk 0:01:05]} 33. Rxg7+
{[%clk 0:02:13.5]} 33... Kf8 {[%clk 0:01:06.6]} 34. Qd4 {[%clk 0:02:07.6]} 34...
exf3 {[%clk 0:00:59.2]} 35. Rxb7 {[%clk 0:02:05.1]} 35... Qe4+ {[%clk
0:00:50.7]} 36. Qxe4 {[%clk 0:02:05.9]} 36... Rxe4 {[%clk 0:00:52.6]} 37. Rxh7
{[%clk 0:02:05.9]} 37... Re2 {[%clk 0:00:47.9]} 38. Rh8+ {[%clk 0:02:05.5]}
38... Kf7 {[%clk 0:00:48.9]} 39. Bd4 {[%clk 0:02:06.7]} 39... Rd2 {[%clk
0:00:46.6]} 40. Bc5 {[%clk 0:02:05.1]} 40... Nc3+ {[%clk 0:00:46.2]} 41. Kc1
{[%clk 0:02:06.4]} 41... Re2 {[%clk 0:00:41.2]} 42. Bd4 {[%clk 0:01:49.7]} 42...
Nb5 {[%clk 0:00:26.6]} 43. Rd8 {[%clk 0:01:44.4]} 43... Nxa3 {[%clk 0:00:14.7]}
44. h6 {[%clk 0:01:45]} 44... Kg6 {[%clk 0:00:14.9]} 45. Rd6+ {[%clk 0:01:46.1]}
45... Kh7 {[%clk 0:00:15.3]} 46. Rd5 {[%clk 0:01:38.9]} 46... Kxh6 {[%clk
0:00:13]} 47. Be5 {[%clk 0:01:38.6]} 47... Kg5 {[%clk 0:00:11.2]} 48. Bb2+
{[%clk 0:01:39.4]} 48... Kg4 {[%clk 0:00:12.2]} 49. Bxa3 {[%clk 0:01:40.9]}
49... Rxf2 {[%clk 0:00:13.7]} 50. b5 {[%clk 0:01:40.7]} 50... Ra2 {[%clk
0:00:14.4]} 51. Bc5 {[%clk 0:01:41.2]} 51... f2 {[%clk 0:00:15]} 52. Bxf2 {[%clk
0:01:42.2]} 52... Rxf2 {[%clk 0:00:16.2]} 53. b6 {[%clk 0:01:43.4]} 53... a3
{[%clk 0:00:17.2]} 54. Rb5 {[%clk 0:01:43.2]} 54... a2 {[%clk 0:00:17.1]} 55.
Ra5 {[%clk 0:01:44.6]} 55... a1=Q+ {[%clk 0:00:13.5]} 56. Rxa1 {[%clk
0:01:44.8]} 56... Rf1+ {[%clk 0:00:15.1]} 57. Kb2 {[%clk 0:01:46.3]} 57... Rxa1
{[%clk 0:00:12]} 58. b7 {[%clk 0:01:40.7]} 58... f3 {[%clk 0:00:08.3]} 59. b8=Q
{[%clk 0:01:40.5]} 59... f2 {[%clk 0:00:09.9]} 60. Qg8+ {[%clk 0:01:37.4]} 60...
Kf3 {[%clk 0:00:10.8]} 61. Qd5+ {[%clk 0:01:35.5]} 61... Ke2 {[%clk 0:00:10.3]}
62. Qe4+ {[%clk 0:01:36.1]} 62... Kd1 {[%clk 0:00:10]} 63. Qf3+ {[%clk
0:01:32.7]} 63... Ke1 {[%clk 0:00:09.3]} 64. Qe3+ {[%clk 0:01:33.7]} 64... Kf1
{[%clk 0:00:08.1]} 65. Kxa1 {[%clk 0:01:28.6]} 65... Kg2 {[%clk 0:00:09.4]} 66.
Qg5+ {[%clk 0:01:29.3]} 66... Kf1 {[%clk 0:00:07.8]} 67. Kb2 {[%clk 0:01:29.8]}
67... Ke2 {[%clk 0:00:08.7]} 68. Qe5+ {[%clk 0:01:30.1]} 68... Kf1 {[%clk
0:00:08]} 69. Kc2 {[%clk 0:01:30.5]} 69... Kg2 {[%clk 0:00:09.5]} 70. Qg5+
{[%clk 0:01:30.6]} 70... Kh2 {[%clk 0:00:10]} 71. Qf4+ {[%clk 0:01:31.5]} 71...
Kg2 {[%clk 0:00:11.4]} 72. Qg4+ {[%clk 0:01:31.6]} 72... Kh2 {[%clk 0:00:12]}
73. Qe2 {[%clk 0:01:32.1]} 73... Kg1 {[%clk 0:00:12.8]} 74. Qe3 {[%clk
0:01:31.8]} 74... Kg2 {[%clk 0:00:13.4]} 75. Qg5+ {[%clk 0:01:32.8]} 75... Kh1
{[%clk 0:00:13.9]} 76. Qd5+ {[%clk 0:01:29.9]} 76... Kg1 {[%clk 0:00:14.2]} 77.
Qd4 {[%clk 0:01:30.3]} 77... Kg2 {[%clk 0:00:15.3]} 78. Qe4+ {[%clk 0:01:31.6]}
78... Kg1 {[%clk 0:00:15.9]} 79. Qe3 {[%clk 0:01:32.6]} 79... Kg2 {[%clk
0:00:17.1]} 80. Qe2 {[%clk 0:01:32.7]} 80... Kg1 {[%clk 0:00:17.3]} 81. Qg4+
{[%clk 0:01:33.9]} 81... Kh2 {[%clk 0:00:17.2]} 82. Qf3 {[%clk 0:01:34.5]} 82...
Kg1 {[%clk 0:00:18.4]} 83. Qg3+ {[%clk 0:01:35.9]} 83... Kf1 {[%clk 0:00:18.1]}
84. Kd3 {[%clk 0:01:33.8]} 84... Ke1 {[%clk 0:00:18.8]} 85. Ke3 {[%clk
0:01:34.8]} 1-0